[Event "Early-Titled-Tuesday-Blitz-February-06-2024"]
[Site "Chess.com"]
[Date "2024.02.06"]
[Round "1"]
[White "Alexei_Kornev"]
[Black "ilushka"]
[Result "0-1"]
[WhiteElo "2705"]
[BlackElo "2414"]
[TimeControl "180+1"]
[EndTime "8:06:19 PST"]
[Termination "ilushka won by resignation"]

1. d4 {[%clk 0:03:00.9]} 1... e6 {[%clk 0:02:59]} 2. c4 {[%clk 0:03:01.3]} 2...
b6 {[%clk 0:02:53.5]} 3. Nc3 {[%clk 0:03:00.5]} 3... Bb7 {[%clk 0:02:53]} 4. a3
{[%clk 0:03:00.3]} 4... f5 {[%clk 0:02:51.9]} 5. d5 {[%clk 0:03:00.6]} 5... Nf6
{[%clk 0:02:50.1]} 6. Nf3 {[%clk 0:03:01]} 6... Be7 {[%clk 0:02:47.4]} 7. Bf4
{[%clk 0:03:01]} 7... O-O {[%clk 0:02:46.4]} 8. h3 {[%clk 0:03:01]} 8... Ne4
{[%clk 0:02:45.7]} 9. Rc1 {[%clk 0:03:00]} 9... Bf6 {[%clk 0:02:39.8]} 10. Be5
{[%clk 0:02:56.7]} 10... Bxe5 {[%clk 0:02:35.6]} 11. Nxe5 {[%clk 0:02:57.6]}
11... Qf6 {[%clk 0:02:22.7]} 12. Nxe4 {[%clk 0:02:50.9]} 12... fxe4 {[%clk
0:02:18.3]} 13. Ng4 {[%clk 0:02:47.5]} 13... Qxb2 {[%clk 0:02:12.2]} 14. dxe6
{[%clk 0:02:46]} 14... dxe6 {[%clk 0:02:06.7]} 15. Qc2 {[%clk 0:02:40.6]} 15...
Qxa3 {[%clk 0:01:59.2]} 16. e3 {[%clk 0:02:40.5]} 16... Qb4+ {[%clk 0:01:44.8]}
17. Qc3 {[%clk 0:02:39.8]} 17... Qxc3+ {[%clk 0:01:45]} 18. Rxc3 {[%clk
0:02:40.7]} 18... Nc6 {[%clk 0:01:45.1]} 19. Be2 {[%clk 0:02:40.7]} 19... h5
{[%clk 0:01:38.5]} 20. Nh2 {[%clk 0:02:38.8]} 20... g6 {[%clk 0:01:38.5]} 21.
Nf1 {[%clk 0:02:37.9]} 21... Rfd8 {[%clk 0:01:28.7]} 22. Nd2 {[%clk 0:02:37.4]}
22... Ne5 {[%clk 0:01:28.6]} 23. c5 {[%clk 0:02:35.4]} 23... Rac8 {[%clk
0:01:12.4]} 24. Nc4 {[%clk 0:02:28.8]} 24... Nxc4 {[%clk 0:01:10.8]} 25. Bxc4
{[%clk 0:02:28.3]} 25... Bd5 {[%clk 0:01:09.8]} 26. Ba6 {[%clk 0:02:27.9]} 26...
Ra8 {[%clk 0:01:01.5]} 27. O-O {[%clk 0:02:25.4]} 27... Rdb8 {[%clk 0:00:41.3]}
28. Bc4 {[%clk 0:02:17.8]} 28... b5 {[%clk 0:00:35.1]} 29. Bxd5 {[%clk
0:02:14.1]} 29... exd5 {[%clk 0:00:35.1]} 30. c6 {[%clk 0:02:14.5]} 30... Rb6
{[%clk 0:00:28]} 31. Rc5 {[%clk 0:02:13.4]} 31... Rd8 {[%clk 0:00:28.3]} 32. Ra1
{[%clk 0:02:12.4]} 32... a6 {[%clk 0:00:26.9]} 33. h4 {[%clk 0:02:10.2]} 33...
Rd6 {[%clk 0:00:27.1]} 34. Rd1 {[%clk 0:02:07]} 34... Rbxc6 {[%clk 0:00:24]} 35.
Rdxd5 {[%clk 0:02:06.9]} 35... Rxc5 {[%clk 0:00:15.7]} 36. Rxc5 {[%clk
0:02:06.8]} 36... c6 {[%clk 0:00:14.4]} 37. f3 {[%clk 0:02:06.5]} 37... exf3
{[%clk 0:00:13.9]} 38. gxf3 {[%clk 0:02:07.4]} 38... a5 {[%clk 0:00:14.2]} 39.
e4 {[%clk 0:02:07]} 39... a4 {[%clk 0:00:14.5]} 40. e5 {[%clk 0:02:07.7]} 40...
Rd5 {[%clk 0:00:14.2]} 41. Rxc6 {[%clk 0:02:07.4]} 41... Rxe5 {[%clk 0:00:14.1]}
42. Rxg6+ {[%clk 0:02:07.5]} 42... Kf7 {[%clk 0:00:14.1]} 43. Ra6 {[%clk
0:02:08.4]} 43... Re2 {[%clk 0:00:12.8]} 44. f4 {[%clk 0:02:03.8]} 44... Rb2
{[%clk 0:00:12.6]} 45. f5 {[%clk 0:02:04.2]} 45... Rb3 {[%clk 0:00:13]} 46. Kf2
{[%clk 0:02:03.8]} 46... a3 {[%clk 0:00:12.8]} 47. Ke2 {[%clk 0:02:01.2]} 47...
b4 {[%clk 0:00:13.4]} 48. Kf2 {[%clk 0:02:01.8]} 48... Rb2+ {[%clk 0:00:13.5]}
49. Kf3 {[%clk 0:02:02.5]} 49... a2 {[%clk 0:00:14]} 50. Kf4 {[%clk 0:02:01.8]}
50... b3 {[%clk 0:00:14.4]} 51. Ke5 {[%clk 0:02:02.2]} 51... Re2+ {[%clk
0:00:13.7]} 52. Kf4 {[%clk 0:02:02.1]} 52... Re1 {[%clk 0:00:14.2]} 53. Ra7+
{[%clk 0:02:01.3]} 53... Ke8 {[%clk 0:00:14]} 54. Ra8+ {[%clk 0:01:56.2]} 54...
Kd7 {[%clk 0:00:14.5]} 0-1

[Event "Early-Titled-Tuesday-Blitz-February-06-2024"]
[Site "Chess.com"]
[Date "2024.02.06"]
[Round "1"]
[White "SARGISMV"]
[Black "KaterynaLagno"]
[Result "0-1"]
[WhiteElo "2459"]
[BlackElo "2837"]
[TimeControl "180+1"]
[EndTime "8:06:20 PST"]
[Termination "KaterynaLagno won by checkmate"]

1. d4 {[%clk 0:03:00.9]} 1... Nf6 {[%clk 0:02:59.8]} 2. c4 {[%clk 0:03:01]} 2...
e6 {[%clk 0:03:00.5]} 3. Nc3 {[%clk 0:03:01.2]} 3... d5 {[%clk 0:03:00.8]} 4.
Bg5 {[%clk 0:02:57.1]} 4... dxc4 {[%clk 0:02:58.4]} 5. e3 {[%clk 0:02:49.2]}
5... c5 {[%clk 0:02:56.4]} 6. Bxc4 {[%clk 0:02:45.6]} 6... cxd4 {[%clk
0:02:48.8]} 7. exd4 {[%clk 0:02:46.5]} 7... Nc6 {[%clk 0:02:49.3]} 8. Nf3 {[%clk
0:02:46]} 8... Be7 {[%clk 0:02:46.5]} 9. O-O {[%clk 0:02:45.6]} 9... O-O {[%clk
0:02:47.2]} 10. Re1 {[%clk 0:02:35.6]} 10... a6 {[%clk 0:02:43.2]} 11. d5 {[%clk
0:02:28.1]} 11... Nxd5 {[%clk 0:02:37.4]} 12. Bxd5 {[%clk 0:01:46.9]} 12... Bxg5
{[%clk 0:02:36.1]} 13. Bxc6 {[%clk 0:01:44.1]} 13... bxc6 {[%clk 0:02:34]} 14.
Nxg5 {[%clk 0:01:28.2]} 14... Qxg5 {[%clk 0:02:33.5]} 15. Qd6 {[%clk 0:01:28.6]}
15... Ra7 {[%clk 0:02:23.6]} 16. Re3 {[%clk 0:01:08.1]} 16... Rd7 {[%clk
0:02:20.3]} 17. Qa3 {[%clk 0:01:00.1]} 17... Rfd8 {[%clk 0:02:11]} 18. Rg3
{[%clk 0:00:55.5]} 18... Qe7 {[%clk 0:02:09.6]} 19. Qa5 {[%clk 0:00:43.7]} 19...
c5 {[%clk 0:02:07.9]} 20. h4 {[%clk 0:00:39.9]} 20... Bb7 {[%clk 0:02:05.1]} 21.
h5 {[%clk 0:00:38.7]} 21... h6 {[%clk 0:02:05.1]} 22. Re1 {[%clk 0:00:37]} 22...
Rd4 {[%clk 0:02:01.3]} 23. Qb6 {[%clk 0:00:21.7]} 23... Rh4 {[%clk 0:01:52.2]}
24. Na4 {[%clk 0:00:18.9]} 24... Rxh5 {[%clk 0:01:50.6]} 25. Rc1 {[%clk
0:00:17]} 25... Rd6 {[%clk 0:01:40.6]} 26. Qa7 {[%clk 0:00:15.4]} 26... Rg5
{[%clk 0:01:32.6]} 27. Rxc5 {[%clk 0:00:12.9]} 27... Rxg3 {[%clk 0:01:21.8]} 28.
fxg3 {[%clk 0:00:13.8]} 28... Rd2 {[%clk 0:01:17.2]} 29. Rc8+ {[%clk 0:00:08.5]}
29... Kh7 {[%clk 0:01:15.8]} 30. Rb8 {[%clk 0:00:09.2]} 30... Rxg2+ {[%clk
0:01:08.4]} 31. Kf1 {[%clk 0:00:07.5]} 31... Qf6+ {[%clk 0:01:07.3]} 32. Ke1
{[%clk 0:00:08.2]} 32... Qe5+ {[%clk 0:01:06.1]} 33. Kd1 {[%clk 0:00:07]} 33...
Qe2+ {[%clk 0:01:06.1]} 34. Kc1 {[%clk 0:00:07.4]} 34... Qc2# {[%clk 0:01:07]}
0-1

[Event "Early-Titled-Tuesday-Blitz-February-06-2024"]
[Site "Chess.com"]
[Date "2024.02.06"]
[Round "1"]
[White "Ati1517"]
[Black "bazar-wokzal"]
[Result "0-1"]
[WhiteElo "2241"]
[BlackElo "2594"]
[TimeControl "180+1"]
[EndTime "8:06:21 PST"]
[Termination "bazar-wokzal won by resignation"]

1. e4 {[%clk 0:03:00.9]} 1... c5 {[%clk 0:02:58.6]} 2. Nf3 {[%clk 0:03:00.6]}
2... d6 {[%clk 0:02:58.1]} 3. d4 {[%clk 0:03:01.1]} 3... cxd4 {[%clk 0:02:57.7]}
4. Nxd4 {[%clk 0:03:02]} 4... Nf6 {[%clk 0:02:57.1]} 5. Nc3 {[%clk 0:03:02.1]}
5... a6 {[%clk 0:02:55.4]} 6. Bg5 {[%clk 0:03:01.3]} 6... e6 {[%clk 0:02:53.7]}
7. Bc4 {[%clk 0:02:57.2]} 7... Be7 {[%clk 0:02:46.4]} 8. O-O {[%clk 0:02:56.4]}
8... b5 {[%clk 0:02:36.9]} 9. Bb3 {[%clk 0:02:56.1]} 9... h6 {[%clk 0:02:28.7]}
10. Bxf6 {[%clk 0:02:50.3]} 10... Bxf6 {[%clk 0:02:28.6]} 11. Re1 {[%clk
0:02:47.1]} 11... Bb7 {[%clk 0:02:27]} 12. Qd2 {[%clk 0:01:39.2]} 12... Qb6
{[%clk 0:02:19]} 13. Rad1 {[%clk 0:01:09.9]} 13... Nd7 {[%clk 0:02:05.9]} 14.
Kh1 {[%clk 0:00:54.8]} 14... Nc5 {[%clk 0:01:43.6]} 15. f4 {[%clk 0:00:50.4]}
15... O-O {[%clk 0:01:37.6]} 16. e5 {[%clk 0:00:47.7]} 16... dxe5 {[%clk
0:01:37.4]} 17. fxe5 {[%clk 0:00:47.5]} 17... Bg5 {[%clk 0:01:37.7]} 18. Qf2
{[%clk 0:00:46.5]} 18... Nxb3 {[%clk 0:01:32.9]} 19. axb3 {[%clk 0:00:45.5]}
19... Rad8 {[%clk 0:01:29.5]} 20. h4 {[%clk 0:00:33]} 20... Be7 {[%clk
0:01:28.6]} 21. Ne4 {[%clk 0:00:27.2]} 21... Qc7 {[%clk 0:01:11.4]} 22. Qe3
{[%clk 0:00:22.2]} 22... Bxh4 {[%clk 0:01:06.5]} 23. g3 {[%clk 0:00:20.3]} 23...
Bxe4+ {[%clk 0:00:48.2]} 24. Qxe4 {[%clk 0:00:19.9]} 24... Bxg3 {[%clk
0:00:48.8]} 25. Rg1 {[%clk 0:00:19.6]} 25... Qxe5 {[%clk 0:00:41.6]} 26. Qf3
{[%clk 0:00:16.9]} 0-1

[Event "Early-Titled-Tuesday-Blitz-February-06-2024"]
[Site "Chess.com"]
[Date "2024.02.06"]
[Round "1"]
[White "carokannlover213"]
[Black "eCztery"]
[Result "1-0"]
[WhiteElo "2777"]
[BlackElo "2431"]
[TimeControl "180+1"]
[EndTime "8:06:25 PST"]
[Termination "carokannlover213 won by checkmate"]

1. d4 {[%clk 0:03:00.9]} 1... Nf6 {[%clk 0:02:59.1]} 2. c4 {[%clk 0:03:01.8]}
2... e6 {[%clk 0:02:59.1]} 3. Nf3 {[%clk 0:03:02.4]} 3... Bb4+ {[%clk
0:02:58.5]} 4. Nbd2 {[%clk 0:03:01.2]} 4... d5 {[%clk 0:02:56.8]} 5. a3 {[%clk
0:02:58.2]} 5... Bxd2+ {[%clk 0:02:56]} 6. Bxd2 {[%clk 0:02:58.7]} 6... O-O
{[%clk 0:02:55.7]} 7. e3 {[%clk 0:02:58.2]} 7... Ne4 {[%clk 0:02:50.8]} 8. Bd3
{[%clk 0:02:57.3]} 8... f5 {[%clk 0:02:51.2]} 9. O-O {[%clk 0:02:57.6]} 9... Nd7
{[%clk 0:02:49]} 10. Bb4 {[%clk 0:02:55.4]} 10... Rf6 {[%clk 0:02:45.4]} 11. Ne5
{[%clk 0:02:35.1]} 11... Rh6 {[%clk 0:02:24]} 12. f3 {[%clk 0:02:09.8]} 12...
Qh4 {[%clk 0:01:53.7]} 13. fxe4 {[%clk 0:01:54.3]} 13... Qxh2+ {[%clk
0:01:51.8]} 14. Kf2 {[%clk 0:01:54.4]} 14... Nxe5 {[%clk 0:01:45.3]} 15. dxe5
{[%clk 0:01:50.7]} 15... Rh3 {[%clk 0:01:41.5]} 16. Ke1 {[%clk 0:00:56.2]} 16...
Qxg2 {[%clk 0:01:30.3]} 17. Qe2 {[%clk 0:00:53.8]} 17... Qg3+ {[%clk 0:01:21.9]}
18. Qf2 {[%clk 0:00:53.4]} 18... Qxe5 {[%clk 0:01:19.8]} 19. Bc3 {[%clk
0:00:52.6]} 19... Qd6 {[%clk 0:01:16.8]} 20. exd5 {[%clk 0:00:47.7]} 20... exd5
{[%clk 0:01:01.8]} 21. cxd5 {[%clk 0:00:30.6]} 21... Bd7 {[%clk 0:00:58]} 22.
Bxf5 {[%clk 0:00:13.9]} 22... Re8 {[%clk 0:00:36.3]} 23. Bxh3 {[%clk 0:00:12.3]}
23... h6 {[%clk 0:00:32.1]} 24. Qf7+ {[%clk 0:00:11.9]} 24... Kh8 {[%clk
0:00:31.9]} 25. Qxg7# {[%clk 0:00:12.8]} 1-0

[Event "Early-Titled-Tuesday-Blitz-February-06-2024"]
[Site "Chess.com"]
[Date "2024.02.06"]
[Round "1"]
[White "ValiantCeleb"]
[Black "Kostya0705"]
[Result "0-1"]
[WhiteElo "2283"]
[BlackElo "2618"]
[TimeControl "180+1"]
[EndTime "8:06:26 PST"]
[Termination "Kostya0705 won by checkmate"]

1. e4 {[%clk 0:03:00.9]} 1... c5 {[%clk 0:02:58.7]} 2. Nf3 {[%clk 0:03:00.8]}
2... e6 {[%clk 0:02:59.3]} 3. d4 {[%clk 0:03:00.9]} 3... cxd4 {[%clk 0:03:00.2]}
4. Nxd4 {[%clk 0:03:01.4]} 4... Nc6 {[%clk 0:03:01.1]} 5. Nc3 {[%clk 0:03:00.5]}
5... Qc7 {[%clk 0:03:00.8]} 6. Nxc6 {[%clk 0:02:59.6]} 6... bxc6 {[%clk
0:03:01.7]} 7. Bd3 {[%clk 0:02:59.4]} 7... Nf6 {[%clk 0:02:59.5]} 8. O-O {[%clk
0:02:58.2]} 8... d5 {[%clk 0:02:58.9]} 9. Re1 {[%clk 0:02:57.8]} 9... Be7 {[%clk
0:02:57.5]} 10. Bg5 {[%clk 0:02:57]} 10... h6 {[%clk 0:02:52.1]} 11. Bd2 {[%clk
0:02:55.9]} 11... O-O {[%clk 0:02:51.9]} 12. Qf3 {[%clk 0:02:52.1]} 12... a5
{[%clk 0:02:47.4]} 13. e5 {[%clk 0:02:29.4]} 13... Nd7 {[%clk 0:02:46.6]} 14.
Qg3 {[%clk 0:02:29.1]} 14... Kh8 {[%clk 0:02:46.9]} 15. Kh1 {[%clk 0:02:23.9]}
15... Ba6 {[%clk 0:02:33.1]} 16. f4 {[%clk 0:02:19.1]} 16... Nc5 {[%clk
0:02:31.5]} 17. Bxa6 {[%clk 0:02:15.7]} 17... Rxa6 {[%clk 0:02:32.4]} 18. Be3
{[%clk 0:02:06.2]} 18... Rb8 {[%clk 0:02:31.3]} 19. b3 {[%clk 0:02:02.6]} 19...
Nd7 {[%clk 0:02:20.5]} 20. Na4 {[%clk 0:02:02.4]} 20... c5 {[%clk 0:02:20.6]}
21. Qf2 {[%clk 0:01:52.9]} 21... d4 {[%clk 0:02:20.5]} 22. Bd2 {[%clk
0:01:45.8]} 22... Nb6 {[%clk 0:02:20.5]} 23. Nxb6 {[%clk 0:01:43.4]} 23... Qxb6
{[%clk 0:02:21.4]} 24. f5 {[%clk 0:01:37.1]} 24... exf5 {[%clk 0:02:13.5]} 25.
Qxf5 {[%clk 0:01:38]} 25... Rf8 {[%clk 0:02:12.3]} 26. Rf1 {[%clk 0:01:30]}
26... a4 {[%clk 0:02:11.8]} 27. Qd3 {[%clk 0:01:16.3]} 27... Ra7 {[%clk
0:02:09.6]} 28. Rab1 {[%clk 0:01:11.9]} 28... axb3 {[%clk 0:02:08.9]} 29. axb3
{[%clk 0:01:10.9]} 29... Qe6 {[%clk 0:02:07.2]} 30. Rbe1 {[%clk 0:01:07.8]}
30... Rc7 {[%clk 0:02:04.5]} 31. Ba5 {[%clk 0:01:02.8]} 31... Rc6 {[%clk
0:02:03.8]} 32. Re4 {[%clk 0:00:55]} 32... Ra8 {[%clk 0:02:01.8]} 33. Bd2 {[%clk
0:00:54.1]} 33... Rf8 {[%clk 0:01:57.2]} 34. Bf4 {[%clk 0:00:49.9]} 34... Rd8
{[%clk 0:01:55]} 35. Bg3 {[%clk 0:00:46.3]} 35... Bg5 {[%clk 0:01:54.4]} 36. Bh4
{[%clk 0:00:34.3]} 36... Bxh4 {[%clk 0:01:51.3]} 37. Rxh4 {[%clk 0:00:35.2]}
37... Qxe5 {[%clk 0:01:51]} 38. Re4 {[%clk 0:00:29.7]} 38... Qd5 {[%clk
0:01:49.8]} 39. Ref4 {[%clk 0:00:23.5]} 39... Rc7 {[%clk 0:01:46.8]} 40. Qg3
{[%clk 0:00:20.7]} 40... Re7 {[%clk 0:01:45.2]} 41. Rg4 {[%clk 0:00:17.8]} 41...
f5 {[%clk 0:01:41.2]} 42. Rgf4 {[%clk 0:00:15.7]} 42... Re5 {[%clk 0:01:41.5]}
43. h3 {[%clk 0:00:13.8]} 43... Rde8 {[%clk 0:01:41.1]} 44. Kh2 {[%clk
0:00:13.2]} 44... Kh7 {[%clk 0:01:39.6]} 45. Qf2 {[%clk 0:00:12.3]} 45... g6
{[%clk 0:01:37.1]} 46. Qd2 {[%clk 0:00:08.1]} 46... Re2 {[%clk 0:01:36.8]} 47.
Qa5 {[%clk 0:00:04.8]} 47... Qxg2# {[%clk 0:01:36]} 0-1

[Event "Early-Titled-Tuesday-Blitz-February-06-2024"]
[Site "Chess.com"]
[Date "2024.02.06"]
[Round "1"]
[White "Zhigalko_Sergei"]
[Black "Muslim_player_05"]
[Result "1-0"]
[WhiteElo "2944"]
[BlackElo "2501"]
[TimeControl "180+1"]
[EndTime "8:06:27 PST"]
[Termination "Zhigalko_Sergei won by resignation"]

1. e4 {[%clk 0:03:00.9]} 1... e5 {[%clk 0:02:59.5]} 2. Nf3 {[%clk 0:03:00.9]}
2... Nc6 {[%clk 0:02:59.8]} 3. Bc4 {[%clk 0:02:58.7]} 3... Bc5 {[%clk
0:02:58.8]} 4. b4 {[%clk 0:02:58.5]} 4... Bxb4 {[%clk 0:02:58.4]} 5. c3 {[%clk
0:02:58.8]} 5... Be7 {[%clk 0:02:52.6]} 6. d4 {[%clk 0:02:58.4]} 6... Na5 {[%clk
0:02:52.8]} 7. Bd3 {[%clk 0:02:58.6]} 7... d6 {[%clk 0:02:50]} 8. dxe5 {[%clk
0:02:58.6]} 8... dxe5 {[%clk 0:02:49.6]} 9. Nxe5 {[%clk 0:02:59.5]} 9... Nf6
{[%clk 0:02:40.5]} 10. O-O {[%clk 0:02:59]} 10... O-O {[%clk 0:02:40.3]} 11. Qc2
{[%clk 0:02:59.1]} 11... Be6 {[%clk 0:02:25.8]} 12. Nd2 {[%clk 0:02:57.3]} 12...
Qd6 {[%clk 0:02:21.7]} 13. f4 {[%clk 0:02:41.4]} 13... Rad8 {[%clk 0:02:18.3]}
14. Ndf3 {[%clk 0:02:40.4]} 14... Nc4 {[%clk 0:02:10.7]} 15. Kh1 {[%clk
0:01:17.6]} 15... Nxe5 {[%clk 0:02:01.9]} 16. Nxe5 {[%clk 0:01:18.5]} 16... Ng4
{[%clk 0:02:00.8]} 17. Nxg4 {[%clk 0:01:06.8]} 17... Qxd3 {[%clk 0:02:00.8]} 18.
Qxd3 {[%clk 0:00:59.3]} 18... Rxd3 {[%clk 0:02:01.7]} 19. f5 {[%clk 0:01:00]}
19... Bc8 {[%clk 0:01:53]} 20. h3 {[%clk 0:00:48.5]} 20... Rxc3 {[%clk
0:01:45.5]} 21. f6 {[%clk 0:00:48.7]} 21... gxf6 {[%clk 0:01:26.5]} 22. Bb2
{[%clk 0:00:37.2]} 22... Rc2 {[%clk 0:01:20.4]} 23. Nxf6+ {[%clk 0:00:33.9]}
23... Bxf6 {[%clk 0:01:20.7]} 24. Bxf6 {[%clk 0:00:34.8]} 24... Re8 {[%clk
0:01:16.9]} 25. Rad1 {[%clk 0:00:19.1]} 25... h5 {[%clk 0:01:00]} 26. Rd5 {[%clk
0:00:17.8]} 26... Rxe4 {[%clk 0:00:56.8]} 27. Rxh5 {[%clk 0:00:13.8]} 1-0

[Event "Early-Titled-Tuesday-Blitz-February-06-2024"]
[Site "Chess.com"]
[Date "2024.02.06"]
[Round "1"]
[White "unclear15"]
[Black "The_Machine04"]
[Result "0-1"]
[WhiteElo "2389"]
[BlackElo "2709"]
[TimeControl "180+1"]
[EndTime "8:06:27 PST"]
[Termination "The_Machine04 won by resignation"]

1. e4 {[%clk 0:02:57.8]} 1... d6 {[%clk 0:02:59.2]} 2. d4 {[%clk 0:02:52.5]}
2... Nf6 {[%clk 0:02:59.2]} 3. Nc3 {[%clk 0:02:47.1]} 3... e5 {[%clk 0:02:59.5]}
4. Nf3 {[%clk 0:02:45.9]} 4... Nbd7 {[%clk 0:02:59.6]} 5. Bc4 {[%clk 0:02:44.8]}
5... Be7 {[%clk 0:02:59.9]} 6. O-O {[%clk 0:02:36.7]} 6... c6 {[%clk 0:02:59]}
7. a4 {[%clk 0:02:34.5]} 7... h6 {[%clk 0:02:58]} 8. Be3 {[%clk 0:02:28.1]} 8...
Qc7 {[%clk 0:02:58]} 9. a5 {[%clk 0:02:20.6]} 9... Nf8 {[%clk 0:02:57.7]} 10. a6
{[%clk 0:02:08.9]} 10... b5 {[%clk 0:02:56.9]} 11. Bd3 {[%clk 0:01:58.4]} 11...
Ng6 {[%clk 0:02:56.1]} 12. Ne2 {[%clk 0:01:56.5]} 12... O-O {[%clk 0:02:54.3]}
13. Ng3 {[%clk 0:01:52.8]} 13... Rb8 {[%clk 0:02:52.9]} 14. c3 {[%clk
0:01:49.7]} 14... Re8 {[%clk 0:02:51.5]} 15. Re1 {[%clk 0:01:47.9]} 15... Bf8
{[%clk 0:02:51.1]} 16. b4 {[%clk 0:01:40.6]} 16... Nf4 {[%clk 0:02:44.4]} 17.
Bxf4 {[%clk 0:01:37.8]} 17... exf4 {[%clk 0:02:45.3]} 18. Nf1 {[%clk 0:01:08]}
18... Rb6 {[%clk 0:02:42.4]} 19. e5 {[%clk 0:00:57.2]} 19... dxe5 {[%clk
0:02:42]} 20. Nxe5 {[%clk 0:00:58.1]} 20... Rxa6 {[%clk 0:02:38]} 21. Qf3 {[%clk
0:00:50.9]} 21... Rxa1 {[%clk 0:02:36.5]} 22. Rxa1 {[%clk 0:00:51.8]} 22... Nd5
{[%clk 0:02:32.6]} 23. Be4 {[%clk 0:00:23.4]} 23... Be6 {[%clk 0:02:31.3]} 24.
Nd2 {[%clk 0:00:17.7]} 24... Bd6 {[%clk 0:02:26.6]} 25. Nd3 {[%clk 0:00:15.3]}
25... Ra8 {[%clk 0:02:17.1]} 26. Nc5 {[%clk 0:00:15]} 26... a5 {[%clk
0:02:14.2]} 27. Bc2 {[%clk 0:00:12.9]} 27... Bxc5 {[%clk 0:02:00.8]} 28. bxc5
{[%clk 0:00:12.9]} 28... Re8 {[%clk 0:01:56.4]} 29. Be4 {[%clk 0:00:11.5]} 29...
Nf6 {[%clk 0:01:56]} 30. Bc2 {[%clk 0:00:11.1]} 30... Bd5 {[%clk 0:01:54.2]} 31.
Qd3 {[%clk 0:00:10.9]} 31... a4 {[%clk 0:01:52.8]} 32. f3 {[%clk 0:00:10.5]}
32... Re3 {[%clk 0:01:51.8]} 33. Qf1 {[%clk 0:00:10.4]} 33... Rxc3 {[%clk
0:01:51]} 34. Bb1 {[%clk 0:00:10.7]} 34... Re3 {[%clk 0:01:50.2]} 35. Qc1 {[%clk
0:00:10.2]} 35... Qa5 {[%clk 0:01:50.1]} 36. Qc2 {[%clk 0:00:10.3]} 36... Qc3
{[%clk 0:01:45.7]} 37. Nf1 {[%clk 0:00:09.3]} 37... Qxa1 {[%clk 0:01:44.2]} 38.
Nxe3 {[%clk 0:00:08.5]} 38... fxe3 {[%clk 0:01:45.1]} 39. g3 {[%clk 0:00:08.8]}
39... Qxd4 {[%clk 0:01:44]} 40. Kf1 {[%clk 0:00:08.7]} 40... Bc4+ {[%clk
0:01:43.7]} 41. Ke1 {[%clk 0:00:07.7]} 41... Qd2+ {[%clk 0:01:44]} 42. Qxd2
{[%clk 0:00:07.9]} 42... exd2+ {[%clk 0:01:44.9]} 43. Kxd2 {[%clk 0:00:08.8]}
43... a3 {[%clk 0:01:45.8]} 44. Kc3 {[%clk 0:00:08.8]} 44... a2 {[%clk
0:01:46.2]} 45. Bxa2 {[%clk 0:00:09.7]} 45... Bxa2 {[%clk 0:01:47.1]} 46. Kd4
{[%clk 0:00:10.1]} 46... Bd5 {[%clk 0:01:47.8]} 47. Ke5 {[%clk 0:00:11]} 47...
Bxf3 {[%clk 0:01:47.7]} 48. Kd6 {[%clk 0:00:11.6]} 48... Bd5 {[%clk 0:01:48.6]}
49. Kc7 {[%clk 0:00:11.3]} 49... Ne4 {[%clk 0:01:49.5]} 50. Kb6 {[%clk
0:00:11.9]} 50... b4 {[%clk 0:01:50.2]} 51. Ka5 {[%clk 0:00:11.9]} 51... b3
{[%clk 0:01:51.1]} 52. Ka4 {[%clk 0:00:12.6]} 52... b2 {[%clk 0:01:52]} 53. Ka3
{[%clk 0:00:13.2]} 53... b1=Q {[%clk 0:01:52.6]} 0-1

[Event "Early-Titled-Tuesday-Blitz-February-06-2024"]
[Site "Chess.com"]
[Date "2024.02.06"]
[Round "1"]
[White "Ind1anStar"]
[Black "javirec"]
[Result "1-0"]
[WhiteElo "2607"]
[BlackElo "2269"]
[TimeControl "180+1"]
[EndTime "8:06:27 PST"]
[Termination "Ind1anStar won on time"]

1. d4 {[%clk 0:03:00.9]} 1... Nf6 {[%clk 0:02:58.7]} 2. c4 {[%clk 0:03:00.7]}
2... d6 {[%clk 0:02:58.3]} 3. Nc3 {[%clk 0:03:00.6]} 3... e5 {[%clk 0:02:58.3]}
4. d5 {[%clk 0:02:57.2]} 4... Bf5 {[%clk 0:02:51.3]} 5. g3 {[%clk 0:02:52.7]}
5... Nbd7 {[%clk 0:02:45.3]} 6. Bg2 {[%clk 0:02:52.2]} 6... e4 {[%clk
0:02:42.7]} 7. Qd4 {[%clk 0:02:39.4]} 7... Qe7 {[%clk 0:02:36]} 8. Nh3 {[%clk
0:02:35.5]} 8... h6 {[%clk 0:02:30]} 9. O-O {[%clk 0:02:28]} 9... g6 {[%clk
0:02:24.5]} 10. Nb5 {[%clk 0:02:04.9]} 10... Nb6 {[%clk 0:01:49.9]} 11. Nxc7+
{[%clk 0:01:54.3]} 11... Qxc7 {[%clk 0:01:45]} 12. Qxf6 {[%clk 0:01:54.5]} 12...
Rg8 {[%clk 0:01:33.8]} 13. Qd4 {[%clk 0:01:45.8]} 13... Bg7 {[%clk 0:01:30.2]}
14. Qe3 {[%clk 0:01:42.1]} 14... Qxc4 {[%clk 0:01:15.5]} 15. Nf4 {[%clk
0:01:32.6]} 15... Nxd5 {[%clk 0:00:56.4]} 16. Nxd5 {[%clk 0:01:33.5]} 16... Qxd5
{[%clk 0:00:56.8]} 17. g4 {[%clk 0:01:33.8]} 17... Bd4 {[%clk 0:00:37]} 18. Qd2
{[%clk 0:01:27]} 18... Be6 {[%clk 0:00:33.7]} 19. Rd1 {[%clk 0:01:24.9]} 19...
e3 {[%clk 0:00:23.7]} 20. Qxd4 {[%clk 0:01:12.4]} 20... exf2+ {[%clk 0:00:21.6]}
21. Kxf2 {[%clk 0:01:12.4]} 21... Qb5 {[%clk 0:00:09.1]} 22. Qxd6 {[%clk
0:00:59.9]} 22... Bxg4 {[%clk 0:00:08.9]} 23. Qd3 {[%clk 0:00:55.9]} 23... Qb6+
{[%clk 0:00:02.4]} 24. Be3 {[%clk 0:00:54.8]} 24... Qxe3+ {[%clk 0:00:03.1]} 25.
Qxe3+ {[%clk 0:00:54.2]} 1-0